fUSD/lending_fUSD_20240212
["ID","MTS","AMOUNT","RATE_DAILY","PERIOD"]
[313777665,1707717039018,-864.09,0.0002295,2]
[313777666,1707717039027,-1198.56,0.0002295,2]
[313777667,1707717039037,-353.70516612,0.0002295,2]
[313777668,1707717039047,-758.61,0.0002295,2]
[313777669,1707717039056,-500.0,0.0002295,2]
[313777670,1707717039065,-888.05,0.0002295,2]
[313777671,1707717039075,-1272.82,0.0002295,2]
[313777672,1707717039084,-500.0,0.0002295,2]
[313777673,1707717039093,-607.51892914,0.0002295,7]
[313777674,1707717039102,-500.0,0.0002295,2]
[313777675,1707717039112,-500.0,0.0002295,2]
[313777676,1707717039121,-1097.76,0.0002295,2]
[313777677,1707717039131,-541.03,0.0002295,2]
[313777678,1707717039140,-500.0,0.0002295,2]
[313777679,1707717039150,-1122.99,0.0002295,2]
[313777680,1707717039159,-500.0,0.0002295,2]
[313777681,1707717039168,-628.72,0.0002295,2]
[313777682,1707717039178,-1017.49,0.0002295,2]
[313777683,1707717039187,-624.73,0.0002295,2]
[313777684,1707717039197,-500.0,0.0002295,2]
[313777685,1707717039206,-923.55,0.0002295,2]
[313777686,1707717039217,-894.04,0.0002295,2]
[313777687,1707717039226,-500.0,0.0002295,2]
[313777688,1707717039235,-1216.63,0.0002295,2]
[313777689,1707717039244,-500.0,0.0002295,2]
[313777690,1707717039254,-1617.05,0.0002295,2]
[313777691,1707717039263,-530.38,0.0002295,2]
[313777692,1707717039272,-1438.57,0.0002295,2]
[313777693,1707717039281,-1767.89,0.0002295,2]
[313777694,1707717039291,-1073.53,0.0002295,2]
[313777695,1707717039300,-1231.26,0.0002295,2]
[313777696,1707717039309,-1887.35,0.0002295,2]
[313777697,1707717039318,-1288.9,0.0002295,2]
[313777698,1707717039327,-851.52,0.0002295,2]
[313777699,1707717039337,-709.23,0.0002295,2]
[313777700,1707717039347,-500.0,0.0002295,2]
[313777701,1707717039356,-1674.39,0.0002295,2]
[313777702,1707717039366,-500.0,0.0002295,2]
[313777703,1707717039380,-500.0,0.0002295,2]
[313777704,1707717039389,-933.86,0.0002295,2]
[313777705,1707717039398,-500.0,0.0002295,2]
[313777706,1707717039408,-500.0,0.0002295,2]
[313777707,1707717039421,-500.0,0.0002295,2]
[313777708,1707717039431,-500.0,0.0002295,2]
[313777709,1707717039440,-500.0,0.0002295,2]
[313777710,1707717039451,-500.0,0.0002295,2]
[313777711,1707717039461,-500.0,0.0002295,2]
[313777712,1707717039471,-869.03,0.0002295,2]
[313777713,1707717039480,-500.0,0.0002295,2]
[313777714,1707717039490,-500.0,0.0002295,2]
[313777715,1707717039499,-500.0,0.0002295,2]
[313777716,1707717039508,-500.0,0.0002295,2]
[313777717,1707717039517,-500.0,0.0002295,2]
[313777718,1707717039526,-500.0,0.0002295,2]
[313777719,1707717039535,-500.0,0.0002295,2]
[313777720,1707717039544,-500.0,0.0002295,2]
[313777721,1707717039553,-500.0,0.0002295,2]
[313777722,1707717039562,-231.85851741,0.0002295,2]
[313777723,1707717039571,-500.0,0.0002295,2]
[313777724,1707717039581,-500.0,0.0002295,2]
[313777725,1707717039590,-544.88,0.0002295,2]
[313777726,1707717039599,-500.0,0.0002295,2]
[313777727,1707717039609,-500.0,0.0002295,2]
[313777728,1707717039619,-3979.61,0.0002295,2]
[313777729,1707717039629,-500.0,0.0002295,2]
[313777730,1707717039639,-150.0,0.0002295,2]
[313777731,1707717039651,-500.0,0.0002295,2]
[313777732,1707717039660,-1441.63,0.0002295,2]
[313777733,1707717039670,-500.0,0.0002295,2]
[313777734,1707717039680,-500.0,0.0002295,2]
[313777735,1707717039689,-500.0,0.0002295,2]
[313777736,1707717039699,-500.0,0.0002295,2]
[313777737,1707717039708,-500.0,0.0002295,2]
[313777738,1707717039718,-500.0,0.0002295,2]
[313777739,1707717039728,-500.0,0.0002295,2]
[313777740,1707717039738,-545.75479735,0.0002295,2]
[313777741,1707717039747,-500.0,0.0002295,2]
[313777742,1707717039758,-500.0,0.0002295,2]
[313777743,1707717039767,-611.78,0.0002295,2]
[313777744,1707717039777,-500.0,0.0002295,2]
[313777745,1707717039787,-500.0,0.0002295,2]
[313777746,1707717039797,-500.0,0.0002295,2]
[313777747,1707717039806,-500.0,0.0002295,2]
[313777748,1707717039815,-500.0,0.0002295,2]
[313777749,1707717039825,-3829.56,0.0002295,2]
[313777750,1707717039834,-500.0,0.0002295,2]
[313777751,1707717039844,-500.0,0.0002295,2]
[313777752,1707717039854,-500.0,0.0002295,2]
[313777753,1707717039864,-500.0,0.0002295,2]
[313777754,1707717039873,-543.85,0.0002295,2]
[313777755,1707717039883,-500.0,0.0002295,2]
[313777756,1707717039892,-500.0,0.0002295,2]
[313777757,1707717039901,-510.11,0.0002295,2]
[313777758,1707717039911,-2417.35,0.0002295,2]
[313777759,1707717039920,-500.0,0.0002295,2]
[313777760,1707717039930,-2368.55,0.0002295,2]
[313777761,1707717039939,-1811.79,0.0002295,2]
[313777762,1707717039948,-1920.21,0.0002295,2]
[313777763,1707717039958,-500.0,0.0002295,2]
[313777764,1707717039967,-500.0,0.0002295,2]
[313777765,1707717039976,-10277.38,0.0002295,2]
[313777766,1707717039985,-500.0,0.0002295,2]
[313777767,1707717039994,-500.0,0.0002295,2]
[313777768,1707717040004,-500.0,0.0002295,2]
[313777769,1707717040013,-500.0,0.0002295,2]
[313777770,1707717040022,-1377.73,0.0002295,2]
[313777771,1707717040032,-500.0,0.0002295,2]
[313777772,1707717040041,-431.85822583,0.0002295,2]
[313777773,1707717040051,-500.0,0.0002295,2]
[313777774,1707717040061,-500.0,0.0002295,2]
[313777775,1707717040070,-500.0,0.0002295,2]
[313777776,1707717040080,-500.0,0.0002295,2]
[313777777,1707717040089,-758.43,0.0002295,2]
[313777778,1707717040098,-507.3,0.0002295,2]
[313777779,1707717040108,-500.0,0.0002295,2]
[313777780,1707717040117,-5543.03,0.0002295,2]
[313777781,1707717040126,-500.0,0.0002295,2]
[313777782,1707717040136,-7079.41,0.0002295,2]
[313777783,1707717040145,-500.0,0.0002295,2]
[313777784,1707717040155,-500.0,0.0002295,2]
[313777785,1707717040164,-500.0,0.0002295,2]
[313777786,1707717040173,-500.0,0.0002295,2]
[313777787,1707717040182,-1239.05,0.0002295,2]
[313777788,1707717040192,-500.0,0.0002295,2]
[313777789,1707717040201,-500.0,0.0002295,2]
[313777790,1707717040210,-500.0,0.0002295,2]
[313777791,1707717040219,-500.0,0.0002295,2]
[313777792,1707717040229,-500.0,0.0002295,2]
[313777793,1707717040238,-598.0,0.0002295,2]
[313777794,1707717040248,-545.29042754,0.0002295,2]
[313777795,1707717040258,-749.34,0.0002295,2]
[313777796,1707717040267,-548.16683911,0.0002295,2]
[313777797,1707717040276,-500.0,0.0002295,2]
[313777798,1707717040286,-500.0,0.0002295,2]
[313777799,1707717040295,-500.0,0.0002295,2]
[313777800,1707717040304,-500.0,0.0002295,2]
[313777801,1707717040313,-500.0,0.0002295,2]
[313777802,1707717040322,-555.25,0.0002295,2]
[313777803,1707717040332,-1555.47,0.0002295,2]
[313777804,1707717040341,-500.0,0.0002295,2]
[313777805,1707717040350,-500.0,0.0002295,2]
[313777806,1707717040360,-583.95,0.0002295,2]
[313777807,1707717040370,-500.0,0.0002295,2]
[313777808,1707717040382,-2227.39,0.0002295,2]
[313777809,1707717040391,-502.18,0.0002295,2]
[313777810,1707717040400,-512.9,0.0002295,2]
[313777811,1707717040409,-1025.26,0.0002295,2]
[313777812,1707717040419,-1623.23,0.0002295,2]
[313777813,1707717040428,-500.0,0.0002295,2]
[313777814,1707717040438,-805.7,0.0002295,2]
[313777815,1707717040448,-500.0,0.0002295,2]
[313777816,1707717040457,-1027.31,0.0002295,2]
[313777817,1707717040466,-620.04,0.0002295,2]
[313777818,1707717040476,-1040.87,0.0002295,2]
[313777819,1707717040486,-500.0,0.0002295,2]
[313777820,1707717040495,-653.96,0.0002295,2]
[313777821,1707717040505,-500.0,0.0002295,2]
[313777822,1707717040514,-755.44,0.0002295,2]
[313777824,1707717040524,-505.76109688,0.0002295,2]
[313777826,1707717040533,-500.0,0.0002295,2]
[313777827,1707717040542,-761.05,0.0002295,2]
[313777828,1707717040552,-500.0,0.0002295,2]
[313777829,1707717040562,-500.0,0.0002295,2]
[313777830,1707717040571,-965.03,0.0002295,2]
[313777831,1707717040581,-1743.55,0.0002295,2]
[313777832,1707717040590,-500.0,0.0002295,2]
[313777833,1707717040600,-500.0,0.0002295,2]
[313777834,1707717040609,-500.0,0.0002295,2]
[313777835,1707717040618,-758.72,0.0002295,2]
[313777836,1707717040627,-1491.82,0.0002295,2]
[313777837,1707717040637,-636.39,0.0002295,2]
[313777838,1707717040646,-3122.95,0.0002295,2]
[313777839,1707717040655,-997.59,0.0002295,2]
[313777840,1707717040664,-500.0,0.0002295,2]
[313777841,1707717040673,-1318.92,0.0002295,2]
[313777842,1707717040683,-7815.64,0.0002295,2]
[313777843,1707717040692,-500.0,0.0002295,2]
[313777844,1707717040702,-513.81,0.0002295,2]
[313777845,1707717040711,-500.0,0.0002295,2]
[313777846,1707717040721,-2854.67,0.0002295,2]
[313777847,1707717040731,-500.0,0.0002295,2]
[313777848,1707717040740,-1136.5,0.0002295,2]
[313777849,1707717040750,-500.0,0.0002295,2]
[313777850,1707717040760,-675.31,0.0002295,2]
[313777851,1707717040769,-658.8,0.0002295,2]
[313777852,1707717040778,-500.0,0.0002295,2]
[313777853,1707717040788,-500.0,0.0002295,2]
[313777854,1707717040797,-500.0,0.0002295,2]
[313777855,1707717040806,-1906.41,0.0002295,2]
[313777856,1707717040816,-500.0,0.0002295,2]
[313777857,1707717040825,-1674.93,0.0002295,2]
[313777858,1707717040835,-500.0,0.0002295,2]
[313777859,1707717040844,-1740.69,0.0002295,2]
[313777860,1707717040854,-268.56157515,0.0002295,2]
[313777861,1707717040863,-500.0,0.0002295,2]
[313777862,1707717040873,-1320.27,0.0002295,2]
[313777863,1707717040883,-500.0,0.0002295,2]
[313777864,1707717040892,-500.0,0.0002295,2]
[313777865,1707717040901,-500.0,0.0002295,2]
[313777866,1707717040911,-1055.18,0.0002295,2]
[313777867,1707717040920,-500.0,0.0002295,2]
[313777868,1707717040930,-500.0,0.0002295,2]
[313777869,1707717040939,-523.69,0.0002295,2]
[313777870,1707717040949,-500.0,0.0002295,2]
[313777871,1707717040958,-500.0,0.0002295,2]
[313777872,1707717040967,-4193.63,0.0002295,2]
[313777873,1707717040977,-500.0,0.0002295,2]
[313777874,1707717040987,-500.0,0.0002295,2]
[313777875,1707717040997,-500.0,0.0002295,2]
[313777876,1707717041006,-500.0,0.0002295,2]
[313777877,1707717041020,-554.98436786,0.0002295,2]
[313777878,1707717041030,-3818.84,0.0002295,2]
[313777879,1707717041038,-500.0,0.0002295,2]
[313777880,1707717041048,-513.65566491,0.0002295,2]
[313777881,1707717041057,-500.0,0.0002295,2]
[313777882,1707717041067,-2091.7,0.0002295,2]
[313777883,1707717041076,-500.0,0.0002295,2]
[313777884,1707717041085,-618.22,0.0002295,2]
[313777885,1707717041094,-802.63,0.0002295,2]
[313777886,1707717041103,-970.39,0.0002295,2]
[313777887,1707717041112,-500.0,0.0002295,2]
[313777888,1707717041122,-1281.77,0.0002295,2]
[313777889,1707717041131,-500.0,0.0002295,2]
[313777890,1707717041140,-1713.65,0.0002295,2]
[313777891,1707717041150,-500.0,0.0002295,2]
[313777892,1707717041159,-500.0,0.0002295,2]
[313777893,1707717041169,-525.41,0.0002295,2]
[313777894,1707717041178,-579.85,0.0002295,2]
[313777895,1707717041187,-500.0,0.0002295,2]
[313777896,1707717041196,-500.0,0.0002295,2]
[313777897,1707717041206,-500.0,0.0002295,2]
[313777898,1707717041215,-500.0,0.0002295,2]
[313777899,1707717041224,-3478.09,0.0002295,2]
[313777900,1707717041233,-500.0,0.0002295,2]
[313777901,1707717041242,-1074.65,0.0002295,2]
[313777902,1707717041252,-567.09,0.0002295,2]
[313777903,1707717041260,-605.06,0.0002295,2]
[313777904,1707717041269,-2457.01,0.0002295,2]
[313777905,1707717041279,-2471.37,0.0002295,2]
[313777906,1707717041288,-715.66,0.0002295,2]
[313777907,1707717041297,-555.95,0.0002295,2]
[313777908,1707717041306,-923.11,0.0002295,2]
[313777909,1707717041316,-1411.05,0.0002295,2]
[313777910,1707717041325,-514.94,0.0002295,2]
[313777911,1707717041335,-500.0,0.0002295,2]
[313777912,1707717041344,-3024.06,0.0002295,2]
[313777913,1707717041353,-2300.89,0.0002295,2]
[313777914,1707717041362,-531.55581169,0.0002295,2]
[313777915,1707717041375,-2330.01,0.0002295,2]
[313777916,1707717041386,-16708.52,0.0002295,2]
[313777917,1707717041395,-501.51,0.0002295,2]
[313777918,1707717041404,-500.0,0.0002295,2]
[313777919,1707717041414,-500.0,0.0002295,2]
[313777920,1707717041423,-535.65,0.0002295,2]
[313777921,1707717041432,-4173.65,0.0002295,2]
[313777922,1707717041441,-500.0,0.0002295,2]
[313777923,1707717041451,-1286.22,0.0002295,2]
[313777924,1707717041461,-500.0,0.0002295,2]
[313777925,1707717041470,-500.0,0.0002295,2]
[313777926,1707717041479,-2139.75,0.0002295,2]
[313777927,1707717041489,-2374.7,0.0002295,2]
[313777928,1707717041498,-500.0,0.0002295,2]
[313777929,1707717041507,-769.72,0.0002295,2]
[313777930,1707717041517,-672.83,0.0002295,2]
[313777931,1707717041525,-2265.99,0.0002295,2]
[313777932,1707717041535,-1163.54,0.0002295,2]
[313777933,1707717041544,-500.0,0.0002295,2]
[313777934,1707717041553,-661.98,0.0002295,2]
[313777935,1707717041562,-500.0,0.0002295,2]
[313777936,1707717041572,-614.28,0.0002295,2]
[313777937,1707717041581,-500.0,0.0002295,2]
[313777938,1707717041590,-2794.88,0.0002295,2]
[313777939,1707717041599,-500.0,0.0002295,2]
[313777940,1707717041609,-500.0,0.0002295,2]
[313777941,1707717041618,-500.0,0.0002295,2]
[313777942,1707717041627,-1209.59,0.0002295,2]
[313777943,1707717041638,-940.64,0.0002295,2]
[313777944,1707717041647,-1325.84,0.0002295,2]
[313777945,1707717041657,-699.2,0.0002295,2]
[313777946,1707717041667,-155.43217317,0.00022951,2]
[313777947,1707717041677,-5212.25089655,0.00022951,2]
[313777948,1707717041686,-292.97120357,0.00022951,2]
[313777949,1707717041696,-154147.89190229,0.00022951,2]
[313777950,1707717041705,-151.0212,0.00022951,3]
[313777951,1707717041715,-151.0212,0.00022951,3]
[313777952,1707717041724,-151.0212,0.00022951,3]
[313777954,1707717041734,-151.0212,0.00022951,3]
[313777956,1707717041743,-151.0212,0.00022951,3]
[313777957,1707717041753,-151.0212,0.00022951,3]
[313777958,1707717041762,-151.0212,0.00022951,3]
[313777959,1707717041979,-151.0212,0.00022951,3]
[313777960,1707717041988,-151.0212,0.00022951,3]
[313777961,1707717041998,-151.0212,0.00022951,3]
[313777962,1707717042007,-151.0212,0.00022951,3]
[313777963,1707717042017,-151.0212,0.00022951,3]
[313777964,1707717042026,-151.0212,0.00022951,3]
[313777965,1707717042035,-151.0212,0.00022951,3]
[313777966,1707717042044,-151.0212,0.00022951,3]
[313777967,1707717042053,-151.0212,0.00022951,3]
[313777968,1707717042063,-151.0212,0.00022951,3]
[313777969,1707717042072,-151.0212,0.00022951,3]
[313777970,1707717042081,-151.0212,0.00022951,3]
[313777971,1707717042090,-151.0212,0.00022951,3]
[313777972,1707717042100,-151.0212,0.00022951,3]
[313777973,1707717042109,-151.0212,0.00022951,3]
[313777974,1707717042119,-151.0212,0.00022951,3]
[313777975,1707717042129,-151.0212,0.00022951,3]
[313777976,1707717042139,-151.0212,0.00022951,3]
[313777977,1707717042148,-151.0212,0.00022951,3]
[313777978,1707717042157,-151.0212,0.00022951,3]
[313777979,1707717042166,-151.0212,0.00022951,3]
[313777980,1707717042175,-168.0212,0.00022951,3]
[313777981,1707717042185,-500.0,0.00022951,2]
[313777982,1707717042195,-1230.46,0.00022951,2]
[313777983,1707717042205,-2298.75,0.00022951,2]
[313777984,1707717042214,-1604.85,0.00022951,2]
[313777985,1707717042223,-520.97,0.00022951,2]
[313777986,1707717042233,-9630.94,0.00022951,2]
[313777987,1707717042242,-748.87,0.00022951,2]
[313777988,1707717042251,-500.0,0.00022951,2]
[313777989,1707717042260,-2577.43,0.00022951,2]
[313777990,1707717042269,-500.0,0.00022951,2]
[313777991,1707717042278,-601.06,0.00022951,2]
[313777992,1707717042287,-1919.32,0.00022951,2]
[313777993,1707717042297,-500.0,0.00022951,2]
[313777994,1707717042306,-664.79,0.00022951,2]
[313777995,1707717042315,-3643.53,0.00022951,2]
[313777996,1707717042325,-1738.9,0.00022951,2]
[313777997,1707717042334,-500.0,0.00022951,2]
[313777998,1707717042343,-500.0,0.00022951,2]
[313777999,1707717042352,-1141.48,0.00022951,2]
[313778000,1707717042362,-500.0,0.00022951,2]
[313778001,1707717042374,-2870.6,0.00022951,2]
[313778002,1707717042384,-852.93,0.00022951,2]
[313778003,1707717042393,-2633.93,0.00022951,2]
[313778004,1707717042402,-1051.31,0.00022951,2]
[313778005,1707717042412,-776.71,0.00022951,2]
[313778006,1707717042421,-719.13,0.00022951,2]
[313778007,1707717042430,-565.37,0.00022951,2]
[313778008,1707717042439,-4091.62,0.00022951,2]
[313778009,1707717042449,-500.0,0.00022951,2]
[313778010,1707717042459,-500.0,0.00022951,2]
[313778011,1707717042469,-4407.69,0.00022951,2]
[313778012,1707717042478,-1977.9,0.00022951,2]
[313778013,1707717042487,-500.0,0.00022951,2]
[313778014,1707717042496,-500.0,0.00022951,2]
[313778015,1707717042505,-218.96102454,0.00022952,2]
[313778016,1707717042515,-338.12032863,0.00022952,2]
[313778017,1707717042524,-221.98239677,0.00022952,2]
[313778018,1707717042533,-156.90050522,0.00022952,2]
[313778019,1707717042543,-463.74195872,0.00022952,2]
[313778020,1707717042552,-500.0,0.00022952,2]
[313778021,1707717042561,-500.0,0.00022952,2]
[313778022,1707717042571,-500.0,0.00022952,2]
[313778023,1707717042581,-801.48,0.00022952,2]
[313778024,1707717042591,-500.0,0.00022952,2]
[313778025,1707717042600,-500.0,0.00022952,2]
[313778026,1707717042610,-500.0,0.00022952,2]
[313778027,1707717042619,-500.0,0.00022952,2]
[313778028,1707717042629,-500.0,0.00022952,2]
[313778029,1707717042640,-150.0,0.00022952,2]
[313778030,1707717042649,-500.0,0.00022952,2]
[313778031,1707717042659,-500.0,0.00022952,2]
[313778032,1707717042669,-500.0,0.00022952,2]
[313778033,1707717042679,-500.0,0.00022952,2]
[313778034,1707717042688,-500.0,0.00022952,2]
[313778035,1707717042698,-406.1550554,0.00022952,2]
[313778036,1707717042707,-536.43721797,0.00022952,2]
[313778037,1707717042718,-500.0,0.00022952,2]
[313778038,1707717042727,-500.0,0.00022952,2]
[313778039,1707717042737,-500.0,0.00022952,2]
[313778040,1707717042746,-500.0,0.00022952,2]
[313778041,1707717042755,-196.76483747,0.00022952,2]
[313778042,1707717042764,-500.0,0.00022952,2]
[313778043,1707717042773,-500.0,0.00022952,2]
[313778044,1707717042782,-500.0,0.00022952,2]
[313778045,1707717042790,-500.0,0.00022952,2]
[313778046,1707717042799,-500.0,0.00022952,2]
[313778047,1707717042809,-500.0,0.00022952,2]
[313778048,1707717042818,-500.0,0.00022952,2]
[313778049,1707717042839,-500.0,0.00022952,2]
[313778050,1707717042850,-500.0,0.00022952,2]
[313778051,1707717042860,-500.0,0.00022952,2]
[313778052,1707717042870,-500.0,0.00022952,2]
[313778053,1707717042880,-500.0,0.00022952,2]
[313778054,1707717042890,-500.0,0.00022952,2]
[313778055,1707717042901,-500.0,0.00022952,2]
[313778056,1707717042910,-500.0,0.00022952,2]
[313778057,1707717042920,-550.93790157,0.00022952,2]
[313778058,1707717042930,-500.0,0.00022952,2]
[313778059,1707717042940,-512.46648844,0.00022952,2]
[313778060,1707717042950,-500.0,0.00022952,2]
[313778061,1707717042960,-500.0,0.00022952,2]
[313778062,1707717042969,-500.0,0.00022952,2]
[313778063,1707717042980,-500.0,0.00022952,2]
[313778065,1707717042989,-500.0,0.00022952,2]
[313778066,1707717042999,-502.41479791,0.00022952,2]
[313778067,1707717043009,-500.0,0.00022952,2]
[313778068,1707717043019,-500.0,0.00022952,2]
[313778069,1707717043029,-500.0,0.00022952,2]
[313778071,1707717043074,-529.48588887,0.00022952,2]
[313778072,1707717043084,-508.76993023,0.00022952,2]
[313778073,1707717043094,-500.0,0.00022952,2]
[313778074,1707717043103,-500.0,0.00022952,2]
[313778075,1707717043112,-500.0,0.00022952,2]
[313778076,1707717043122,-598.48210376,0.00022952,2]
[313778077,1707717043132,-500.0,0.00022952,2]
[313778078,1707717043142,-500.0,0.00022952,2]
[313778079,1707717043152,-500.0,0.00022952,2]
[313778080,1707717043162,-500.0,0.00022952,2]
[313778081,1707717043171,-500.0,0.00022952,2]
[313778082,1707717043181,-500.0,0.00022952,2]
[313778083,1707717043190,-508.51148544,0.00022952,2]
[313778084,1707717043200,-500.0,0.00022952,2]
[313778085,1707717043210,-503.96091184,0.00022952,2]
[313778086,1707717043219,-500.0,0.00022952,2]
[313778087,1707717043230,-500.0,0.00022952,2]
[313778088,1707717043239,-500.0,0.00022952,2]
[313778089,1707717043249,-500.0,0.00022952,2]
[313778090,1707717043259,-500.0,0.00022952,2]
[313778091,1707717043268,-509.38325128,0.00022952,2]
[313778092,1707717043278,-543.08497795,0.00022952,2]
[313778093,1707717043287,-500.0,0.00022952,2]
[313778094,1707717043297,-504.49820052,0.00022952,2]
[313778095,1707717043307,-573.21,0.00022952,2]
[313778096,1707717043316,-500.0,0.00022952,2]
[313778097,1707717043325,-525.42767528,0.00022952,2]
[313778098,1707717043335,-500.0,0.00022952,2]
[313778099,1707717043345,-543.64,0.00022952,2]
[313778100,1707717043355,-500.0,0.00022952,2]
[313778101,1707717043365,-391.56952584,0.00022952,2]
[313778102,1707717043377,-500.0,0.00022952,2]
[313778103,1707717043387,-500.0,0.00022952,2]
[313778104,1707717043396,-500.0,0.00022952,2]
[313778105,1707717043406,-500.0,0.00022952,2]
[313778106,1707717043417,-500.0,0.00022952,2]
[313778107,1707717043427,-500.0,0.00022952,2]
[313778108,1707717043437,-551.68282239,0.00022952,2]
[313778109,1707717043447,-514.92,0.00022952,2]
[313778110,1707717043456,-500.0,0.00022952,2]
[313778111,1707717043466,-500.0,0.00022952,2]
[313778112,1707717043476,-500.0,0.00022952,2]
[313778113,1707717043485,-500.0,0.00022952,2]
[313778114,1707717043495,-500.0,0.00022952,2]
[313778115,1707717043504,-500.0,0.00022952,2]
[313778116,1707717043514,-647.15,0.00022952,2]
[313778117,1707717043523,-433.37929589,0.00022952,2]
[313778119,1707717043533,-500.0,0.00022952,2]
[313778121,1707717043543,-622.3,0.00022952,2]
[313778122,1707717043552,-500.0,0.00022952,2]
[313778123,1707717043565,-500.0,0.00022952,2]
[313778124,1707717043575,-521.44655723,0.00022952,2]
[313778126,1707717043585,-543.47432111,0.00022952,2]
[313778127,1707717043595,-500.0,0.00022952,2]
[313778128,1707717043606,-500.0,0.00022952,2]
[313778129,1707717043616,-500.0,0.00022952,2]
[313778130,1707717043626,-500.0,0.00022952,2]
[313778131,1707717043638,-500.0,0.00022952,2]
[313778132,1707717043648,-500.0,0.00022952,2]
[313778133,1707717043658,-500.0,0.00022952,2]
[313778134,1707717043669,-566.44406341,0.00022952,2]
[313778135,1707717043678,-500.0,0.00022952,2]
[313778136,1707717043688,-500.0,0.00022952,2]
[313778137,1707717043698,-500.0,0.00022952,2]
[313778138,1707717043708,-500.0,0.00022952,2]
[313778139,1707717043718,-494.06671429,0.00022952,2]
[313778140,1707717043728,-500.0,0.00022952,2]
[313778141,1707717043738,-500.0,0.00022952,2]
[313778142,1707717043748,-500.0,0.00022952,2]
[313778143,1707717043758,-500.0,0.00022952,2]
[313778144,1707717043768,-541.57,0.00022952,2]
[313778145,1707717043778,-500.0,0.00022952,2]
[313778146,1707717043788,-500.0,0.00022952,2]
[313778147,1707717043798,-500.0,0.00022952,2]
[313778148,1707717043808,-500.0,0.00022952,2]
[313778149,1707717043818,-500.0,0.00022952,2]
[313778150,1707717043827,-518.81,0.00022952,2]
[313778151,1707717043837,-500.0,0.00022952,2]
[313778152,1707717043847,-500.0,0.00022952,2]
[313778153,1707717043857,-530.92651903,0.00022952,2]
[313778154,1707717043867,-500.0,0.00022952,2]
[313778155,1707717043876,-500.0,0.00022952,2]
[313778156,1707717043886,-500.0,0.00022952,2]
[313778157,1707717043896,-500.0,0.00022952,2]
[313778158,1707717043906,-500.0,0.00022952,2]
[313778159,1707717043915,-500.0,0.00022952,2]
[313778160,1707717043925,-500.0,0.00022952,2]
[313778161,1707717043935,-500.0,0.00022952,2]
[313778162,1707717043945,-500.0,0.00022952,2]
[313778163,1707717043954,-500.0,0.00022952,2]
[313778164,1707717043964,-250.0,0.00022952,2]
[313778165,1707717043973,-509.73,0.00022952,2]
[313778166,1707717043983,-1035.0,0.00022952,2]
[313778167,1707717043992,-648.04,0.00022952,2]
[313778168,1707717044002,-500.0,0.00022952,2]
[313778169,1707717044011,-500.0,0.00022952,2]
[313778170,1707717044020,-676.57,0.00022952,2]
[313778171,1707717044030,-500.0,0.00022952,2]
[313778172,1707717044040,-500.0,0.00022952,2]
[313778173,1707717044050,-500.0,0.00022952,2]